DEPARTMENT FAMILY,ENTITY,DATE,EXPENSE TYPE,EXPENSE AREA,SUPPLIER,TRANSACTION NUMBER,AMOUNT,DESCRIPTION
DEPARTMENT OF HEALTH,BLACKPOOL TEACHING HOSPITALS NHS FT,23-Sep-14,EXTERNAL CONTRACTS : DOMESTICS,SOFT FM,ISS FACILITY SERVICES HEALTHCARE,5162705,"302,282.51",CLEANING SERVICES
DEPARTMENT OF HEALTH,BLACKPOOL TEACHING HOSPITALS NHS FT,16-Sep-14,EXTERNAL CONTRACTS : LAUNDRY,SOFT FM,EXPRESS LAUNDERERS,5160571,"62,000.00",LAUNDRY SERVICES
DEPARTMENT OF HEALTH,BLACKPOOL TEACHING HOSPITALS NHS FT,18-Sep-14,BLOOD PRODUCTS,PATHOLOGY,NHS BLOOD AND TRANSPLANT,5161272,"200,417.25",BLOOD PRODUCTS
DEPARTMENT OF HEALTH,BLACKPOOL TEACHING HOSPITALS NHS FT,12-Sep-14,PHARMACY PRESCRIPTIONS,PHARMACY DRUGS INVENTORY,NHS BSA PRESCRIPTION PRICING DIVISION,5159667,"34,994.04",SERVICES RECEIVED FROM N.H.S. BODIES
DEPARTMENT OF HEALTH,BLACKPOOL TEACHING HOSPITALS NHS FT,16-Sep-14,HEALTHCARE FROM INDEPENDENT SECTOR,CARDIAC,BMI HEALTHCARE LTD,5160567,"39,817.87",HEALTHCARE FROM INDEPENDENT SECTOR
DEPARTMENT OF HEALTH,BLACKPOOL TEACHING HOSPITALS NHS FT,04-Sep-14,HEALTHCARE FROM INDEPENDENT SECTOR,SPECIALIST SURGERY,SPIRAL HEALTH CIC,5156852,"125,916.67",HEALTHCARE FROM INDEPENDENT SECTOR
DEPARTMENT OF HEALTH,BLACKPOOL TEACHING HOSPITALS NHS FT,04-Sep-14,HEALTHCARE FROM INDEPENDENT SECTOR,SPECIALIST SURGERY,SPIRAL HEALTH CIC,5156853,"256,555.00",HEALTHCARE FROM INDEPENDENT SECTOR
DEPARTMENT OF HEALTH,BLACKPOOL TEACHING HOSPITALS NHS FT,24-Sep-14,HEART VALVES,CARDIOLOGY,MEDTRONIC LTD,5163161,"25,920.00",APPLIANCES AND IMPLANTS
DEPARTMENT OF HEALTH,BLACKPOOL TEACHING HOSPITALS NHS FT,10-Sep-14,LABORATORY CHEMICALS,UCD DIVISION,FRESENIUS MEDICAL CARE RENAL SERVICES (UAE) LTD,5159257,"48,346.20",LABORATORY EQUIPMENT - PURCHASES
DEPARTMENT OF HEALTH,BLACKPOOL TEACHING HOSPITALS NHS FT,10-Sep-14,LABORATORY CHEMICALS,UCD DIVISION,FRESENIUS MEDICAL CARE RENAL SERVICES (UAE) LTD,5159258,"141,196.87",LABORATORY EQUIPMENT - PURCHASES
DEPARTMENT OF HEALTH,BLACKPOOL TEACHING HOSPITALS NHS FT,19-Sep-14,LABORATORY REAGENTS,PATHOLOGY,SIEMENS HEALTHCARE DIAGNOSTICS LTD,5161782,"56,385.22",LABORATORY EQUIPMENT - PURCHASES
DEPARTMENT OF HEALTH,BLACKPOOL TEACHING HOSPITALS NHS FT,19-Sep-14,LABORATORY REAGENTS,PATHOLOGY,SIEMENS HEALTHCARE DIAGNOSTICS LTD,5161783,"67,662.26",LABORATORY EQUIPMENT - PURCHASES
DEPARTMENT OF HEALTH,BLACKPOOL TEACHING HOSPITALS NHS FT,03-Sep-14,LABORATORY REAGENTS,PATHOLOGY,BECKMAN COULTER UK,5156827,"30,671.56",LABORATORY EQUIPMENT - PURCHASES
DEPARTMENT OF HEALTH,BLACKPOOL TEACHING HOSPITALS NHS FT,29-Sep-14,MEDICAL AND SURGICAL EQUIPMENT GENERAL,CARDIOLOGY,ST. JUDE MEDICAL U.K. LTD,5164170,"39,600.00",MEDICAL AND SURGICAL EQUIPMENT PURCHASES
DEPARTMENT OF HEALTH,BLACKPOOL TEACHING HOSPITALS NHS FT,26-Sep-14,MEDICAL AND SURGICAL EQUIPMENT GENERAL,CARDIOLOGY,JOHNSON AND JOHNSON MEDICAL LTD,5163993,"26,100.00",MEDICAL AND SURGICAL EQUIPMENT PURCHASES
DEPARTMENT OF HEALTH,BLACKPOOL TEACHING HOSPITALS NHS FT,25-Sep-14,MEDICAL AND SURGICAL EQUIPMENT LEASE,SPECIALIST MEDICINE,CANTEL MEDICAL (UK) LTD,5163534,"27,710.27",MEDICAL AND SURGICAL EQUIPMENT PURCHASES
DEPARTMENT OF HEALTH,BLACKPOOL TEACHING HOSPITALS NHS FT,04-Sep-14,MEDICAL AND SURGICAL EQUIPMENT MAINTENANCE,CARDIOLOGY,PHILIPS HEALTHCARE,5157082,"65,940.06",MEDICAL AND SURGICAL EQUIPMENT MAINTENANCE
DEPARTMENT OF HEALTH,BLACKPOOL TEACHING HOSPITALS NHS FT,30-Sep-14,NON HEALTHCARE SERVICES FROM OTHER NHS BODIES,SPECIALIST MEDICINE,LANCASHIRE TEACHING HOSPITALS NHS FOUNDATION TRUST,5164923,"30,703.00",SERVICES RECEIVED FROM N.H.S. BODIES
DEPARTMENT OF HEALTH,BLACKPOOL TEACHING HOSPITALS NHS FT,12-Sep-14,PACEMAKERS,CARDIOLOGY,MEDTRONIC LTD,5159966,"27,869.68",APPLIANCES AND IMPLANTS
DEPARTMENT OF HEALTH,BLACKPOOL TEACHING HOSPITALS NHS FT,03-Sep-14,PACEMAKERS,CARDIOLOGY,MEDTRONIC LTD,5156746,"27,965.26",APPLIANCES AND IMPLANTS
DEPARTMENT OF HEALTH,BLACKPOOL TEACHING HOSPITALS NHS FT,01-Sep-14,PACEMAKERS,CARDIOLOGY,MEDTRONIC LTD,5156147,"29,930.32",APPLIANCES AND IMPLANTS
DEPARTMENT OF HEALTH,BLACKPOOL TEACHING HOSPITALS NHS FT,15-Sep-14,X-RAY EQUIPMENT : PURCHASES,CARDIOLOGY,SIEMENS HEALTHCARE DIAGNOSTICS LTD,5160351,"28,600.00",X-RAY EQUIPMENT : PURCHASES
DEPARTMENT OF HEALTH,BLACKPOOL TEACHING HOSPITALS NHS FT,30-Sep-14,X-RAY EQUIPMENT : PURCHASES,RADIOLOGY,SIEMENS FINANCIAL SERVICES LTD,5164491,"40,497.00",X-RAY EQUIPMENT : PURCHASES
DEPARTMENT OF HEALTH,BLACKPOOL TEACHING HOSPITALS NHS FT,30-Sep-14,X-RAY EQUIPMENT : PURCHASES,RADIOLOGY,SIEMENS FINANCIAL SERVICES LTD,5164492,"40,497.00",X-RAY EQUIPMENT : PURCHASES
DEPARTMENT OF HEALTH,BLACKPOOL TEACHING HOSPITALS NHS FT,02-Sep-14,UTILITIES,HARD FM,UNITED UTILITIES,5156390,"34,715.11",WATER
DEPARTMENT OF HEALTH,BLACKPOOL TEACHING HOSPITALS NHS FT,08-Sep-14,UTILITIES,HARD FM,NPOWER LTD,5157300,"65,196.97",ELECTRICITY
DEPARTMENT OF HEALTH,BLACKPOOL TEACHING HOSPITALS NHS FT,10-Sep-14,UTILITIES,HARD FM,GAZPROM MARKETING AND TRADING RETAIL LTD,5159235,"94,757.80",GAS
DEPARTMENT OF HEALTH,BLACKPOOL TEACHING HOSPITALS NHS FT,15-Sep-14,UTILITIES,HARD FM,UNITED UTILITIES,5160489,"111,562.79",WATER
DEPARTMENT OF HEALTH,BLACKPOOL TEACHING HOSPITALS NHS FT,09-Sep-14,X-RAY EQUIPMENT : MAINTENANCE,EBME,NHS SUPPLY CHAIN,5158434,"64,351.82",X-RAY EQUIPMENT - MAINTENANCE
DEPARTMENT OF HEALTH,BLACKPOOL TEACHING HOSPITALS NHS FT,10-Sep-14,MEDICAL AND SURGICAL EQUIPMENT MAINTENANCE,EBME,NHS SUPPLY CHAIN,5159209,"132,007.96",MEDICAL AND SURGICAL EQUIPMENT MAINTENANCE
DEPARTMENT OF HEALTH,BLACKPOOL TEACHING HOSPITALS NHS FT,30-Sep-14,VEHICLE INSURANCE,PLANNING & CONTRACTING,ZURICH MUNICIPAL,5164855,"70,115.33",INSURANCE
DEPARTMENT OF HEALTH,BLACKPOOL TEACHING HOSPITALS NHS FT,24-Sep-14,COMPUTER MAINTENANCE,ICT,INTEGRATED MEDICAL SOLUTIONS LTD,5163240,"41,958.00",ICT MAINTENANCE
DEPARTMENT OF HEALTH,BLACKPOOL TEACHING HOSPITALS NHS FT,04-Sep-14,COMPUTER SOFTWARE / LICENSE  FEES,FINANCE,NORTHUMBRIA HEALTHCARE NHS FOUNDATION TRUST,5156916,"47,105.00","FURNITURE, OFFICE AND COMPUTER EQUIPMENT"
DEPARTMENT OF HEALTH,BLACKPOOL TEACHING HOSPITALS NHS FT,15-Sep-14,TELEPHONE RENTAL AND CALL CHARGES,ICT,BT TELEPHONE PAYMENT CENTRE,5160072,"91,429.52",TELEPHONES AND COMMUNICATIONS
DEPARTMENT OF HEALTH,BLACKPOOL TEACHING HOSPITALS NHS FT,30-Sep-14,EXTERNAL CONSULTANCY FEES,HR & OD,MEDACS HEALTHCARE PLC,5164495,"54,000.00",EXTERNAL CONTRACT STAFFING AND CONSULTANCY
DEPARTMENT OF HEALTH,BLACKPOOL TEACHING HOSPITALS NHS FT,04-Sep-14,MEDICAL AND SURGICAL EQUIPMENT GENERAL,BLACKPOOL LOCALITY COMM NURSING AND REHAB THERAPIES DIRECTORATE,HILL-ROM LTD,5157101,"26,071.81",MEDICAL AND SURGICAL EQUIPMENT PURCHASES
DEPARTMENT OF HEALTH,BLACKPOOL TEACHING HOSPITALS NHS FT,10-Sep-14,COMPUTER SOFTWARE / LICENSE  FEES,DIVISIONAL MANAGEMENT,NDL SOFTWARE LTD,5158872,"25,200.00","FURNITURE, OFFICE AND COMPUTER EQUIPMENT"
DEPARTMENT OF HEALTH,BLACKPOOL TEACHING HOSPITALS NHS FT,30-Sep-14,NON HEALTHCARE SERVICES FROM OTHER NHS BODIES,DIVISIONAL MANAGEMENT,NHS PROPERTY SERVICES LTD,5164774,"43,749.00",SERVICES RECEIVED FROM N.H.S. BODIES
DEPARTMENT OF HEALTH,BLACKPOOL TEACHING HOSPITALS NHS FT,30-Sep-14,NON HEALTHCARE SERVICES FROM OTHER NHS BODIES,DIVISIONAL MANAGEMENT,NHS PROPERTY SERVICES LTD,5164817,"47,962.00",SERVICES RECEIVED FROM N.H.S. BODIES
DEPARTMENT OF HEALTH,BLACKPOOL TEACHING HOSPITALS NHS FT,01-Sep-14,ADDITIONS - PATENTS,BALANCE SHEET,PHILIPS HEALTHCARE,5126900,"7,493.21",CAPITAL PURCHASES
DEPARTMENT OF HEALTH,BLACKPOOL TEACHING HOSPITALS NHS FT,16-Sep-14,CAPITAL PURCHASES,CAPITAL PURCHASES,GE HEALTHCARE CLINICAL SYSTEMS (UK) LTD_002,5160566,"116,521.20",CAPITAL PURCHASES
DEPARTMENT OF HEALTH,BLACKPOOL TEACHING HOSPITALS NHS FT,16-Sep-14,CAPITAL PURCHASES,CAPITAL PURCHASES,CHRIS BOWKER LTD,5160563,"63,598.73",CAPITAL PURCHASES
DEPARTMENT OF HEALTH,BLACKPOOL TEACHING HOSPITALS NHS FT,03-Sep-14,CAPITAL PURCHASES,CAPITAL PURCHASES,GE HEALTHCARE CLINICAL SYSTEMS (UK) LTD_002,5156835,"29,482.76",CAPITAL PURCHASES
DEPARTMENT OF HEALTH,BLACKPOOL TEACHING HOSPITALS NHS FT,03-Sep-14,CAPITAL PURCHASES,CAPITAL PURCHASES,GE HEALTHCARE CLINICAL SYSTEMS (UK) LTD_002,5156836,"37,100.99",CAPITAL PURCHASES
DEPARTMENT OF HEALTH,BLACKPOOL TEACHING HOSPITALS NHS FT,03-Sep-14,CAPITAL PURCHASES,CAPITAL PURCHASES,BMM WESTON LTD,5156834,"52,377.60",CAPITAL PURCHASES
DEPARTMENT OF HEALTH,BLACKPOOL TEACHING HOSPITALS NHS FT,23-Sep-14,CAPITAL PURCHASES,CAPITAL PURCHASES,NHS SUPPLY CHAIN,5162451,"40,614.00",CAPITAL PURCHASES
DEPARTMENT OF HEALTH,BLACKPOOL TEACHING HOSPITALS NHS FT,24-Sep-14,PHARMACY DRUGS INVENTORY,PHARMACY DRUGS INVENTORY,NOVARTIS PHARMACEUTICALS UK LTD,5162976,"25,434.48",PHARMACY STORES 
DEPARTMENT OF HEALTH,BLACKPOOL TEACHING HOSPITALS NHS FT,10-Sep-14,PHARMACY DRUGS INVENTORY,PHARMACY DRUGS INVENTORY,NOVARTIS PHARMACEUTICALS UK LTD,5158959,"26,740.13",PHARMACY STORES 
DEPARTMENT OF HEALTH,BLACKPOOL TEACHING HOSPITALS NHS FT,22-Sep-14,PHARMACY DRUGS INVENTORY,PHARMACY DRUGS INVENTORY,NOVARTIS PHARMACEUTICALS UK LTD,5162285,"29,389.80",PHARMACY STORES 
DEPARTMENT OF HEALTH,BLACKPOOL TEACHING HOSPITALS NHS FT,22-Sep-14,PHARMACY DRUGS INVENTORY,PHARMACY DRUGS INVENTORY,NOVARTIS PHARMACEUTICALS UK LTD,5162282,"29,395.22",PHARMACY STORES 
DEPARTMENT OF HEALTH,BLACKPOOL TEACHING HOSPITALS NHS FT,10-Sep-14,PHARMACY DRUGS INVENTORY,PHARMACY DRUGS INVENTORY,ROCHE PRODUCTS LTD,5159123,"29,851.67",PHARMACY STORES 
DEPARTMENT OF HEALTH,BLACKPOOL TEACHING HOSPITALS NHS FT,15-Sep-14,PHARMACY DRUGS INVENTORY,PHARMACY DRUGS INVENTORY,ROCHE PRODUCTS LTD,5160159,"34,264.51",PHARMACY STORES 
DEPARTMENT OF HEALTH,BLACKPOOL TEACHING HOSPITALS NHS FT,10-Sep-14,PHARMACY DRUGS INVENTORY,PHARMACY DRUGS INVENTORY,ROCHE PRODUCTS LTD,5159125,"35,849.63",PHARMACY STORES 
DEPARTMENT OF HEALTH,BLACKPOOL TEACHING HOSPITALS NHS FT,18-Sep-14,PHARMACY DRUGS INVENTORY,PHARMACY DRUGS INVENTORY,ROCHE PRODUCTS LTD,5161576,"36,997.91",PHARMACY STORES 
DEPARTMENT OF HEALTH,BLACKPOOL TEACHING HOSPITALS NHS FT,08-Sep-14,PHARMACY DRUGS INVENTORY,PHARMACY DRUGS INVENTORY,NOVARTIS PHARMACEUTICALS UK LTD,5157707,"37,236.24",PHARMACY STORES 
DEPARTMENT OF HEALTH,BLACKPOOL TEACHING HOSPITALS NHS FT,22-Sep-14,PHARMACY DRUGS INVENTORY,PHARMACY DRUGS INVENTORY,NOVARTIS PHARMACEUTICALS UK LTD,5162288,"37,405.20",PHARMACY STORES 
DEPARTMENT OF HEALTH,BLACKPOOL TEACHING HOSPITALS NHS FT,15-Sep-14,PHARMACY DRUGS INVENTORY,PHARMACY DRUGS INVENTORY,NOVARTIS PHARMACEUTICALS UK LTD,5160199,"40,077.00",PHARMACY STORES 
DEPARTMENT OF HEALTH,BLACKPOOL TEACHING HOSPITALS NHS FT,12-Sep-14,PHARMACY DRUGS INVENTORY,PHARMACY DRUGS INVENTORY,ROCHE PRODUCTS LTD,5159769,"44,681.62",PHARMACY STORES 
DEPARTMENT OF HEALTH,BLACKPOOL TEACHING HOSPITALS NHS FT,25-Sep-14,PHARMACY DRUGS INVENTORY,PHARMACY DRUGS INVENTORY,ROCHE PRODUCTS LTD,5163368,"45,202.34",PHARMACY STORES 
DEPARTMENT OF HEALTH,BLACKPOOL TEACHING HOSPITALS NHS FT,08-Sep-14,PHARMACY DRUGS INVENTORY,PHARMACY DRUGS INVENTORY,ROCHE PRODUCTS LTD,5157714,"49,883.82",PHARMACY STORES 
DEPARTMENT OF HEALTH,BLACKPOOL TEACHING HOSPITALS NHS FT,24-Sep-14,PHARMACY DRUGS INVENTORY,PHARMACY DRUGS INVENTORY,LLOYDS PHARMACY LTD,5163248,"279,611.67",PHARMACY STORES 
DEPARTMENT OF HEALTH,BLACKPOOL TEACHING HOSPITALS NHS FT,24-Sep-14,PHARMACY DRUGS INVENTORY,PHARMACY DRUGS INVENTORY,LLOYDS PHARMACY LTD,5163249,"307,223.34",PHARMACY STORES 
DEPARTMENT OF HEALTH,BLACKPOOL TEACHING HOSPITALS NHS FT,22-Sep-14,PHARMACY DRUGS INVENTORY,PHARMACY DRUGS INVENTORY,LLOYDS PHARMACY LTD,5162800,"387,849.32",PHARMACY STORES 
DEPARTMENT OF HEALTH,BLACKPOOL TEACHING HOSPITALS NHS FT,05-Sep-14,NHS SUPPLY CHAIN CATALOGUE ITEMS,MULTI-DIVISIONAL CHARGE,NHS SUPPLY CHAIN,5157900,"104,319.33",NHS SUPPLY CHAIN CATALOGUE ITEMS
DEPARTMENT OF HEALTH,BLACKPOOL TEACHING HOSPITALS NHS FT,19-Sep-14,NHS SUPPLY CHAIN CATALOGUE ITEMS,MULTI-DIVISIONAL CHARGE,NHS SUPPLY CHAIN,5162385,"108,693.07",NHS SUPPLY CHAIN CATALOGUE ITEMS
DEPARTMENT OF HEALTH,BLACKPOOL TEACHING HOSPITALS NHS FT,26-Sep-14,NHS SUPPLY CHAIN CATALOGUE ITEMS,MULTI-DIVISIONAL CHARGE,NHS SUPPLY CHAIN,5164883,"110,303.43",NHS SUPPLY CHAIN CATALOGUE ITEMS
